[Event "Early-Titled-Tuesday-Blitz-May-07-2024"]
[Site "Chess.com"]
[Date "2024.05.07"]
[Round "11"]
[White "LeoLV10"]
[Black "GMKrikor"]
[Result "0-1"]
[WhiteElo "2511"]
[BlackElo "2826"]
[TimeControl "180+1"]
[EndTime "10:16:12 PDT"]
[Termination "GMKrikor won by resignation"]

1. e4 {[%clk 0:03:00.9]} 1... c5 {[%clk 0:03:00.1]} 2. Nf3 {[%clk 0:03:01.2]}
2... Nc6 {[%clk 0:03:00.6]} 3. Bb5 {[%clk 0:03:01.1]} 3... Nf6 {[%clk
0:03:00.2]} 4. Nc3 {[%clk 0:02:51.3]} 4... Qc7 {[%clk 0:02:57.8]} 5. O-O {[%clk
0:02:51.2]} 5... Nd4 {[%clk 0:02:57.7]} 6. Re1 {[%clk 0:02:41.3]} 6... a6 {[%clk
0:02:57.1]} 7. Bf1 {[%clk 0:02:41.3]} 7... Ng4 {[%clk 0:02:57.3]} 8. g3 {[%clk
0:02:35.6]} 8... Nxf3+ {[%clk 0:02:56.7]} 9. Qxf3 {[%clk 0:02:35.9]} 9... Ne5
{[%clk 0:02:56.9]} 10. Qd1 {[%clk 0:02:34.5]} 10... e6 {[%clk 0:02:56.9]} 11.
Bg2 {[%clk 0:02:29.4]} 11... d6 {[%clk 0:02:51]} 12. Ne2 {[%clk 0:02:22.8]}
12... Be7 {[%clk 0:02:48]} 13. d4 {[%clk 0:02:21.6]} 13... cxd4 {[%clk
0:02:47.8]} 14. Nxd4 {[%clk 0:02:22.5]} 14... O-O {[%clk 0:02:45.5]} 15. c3
{[%clk 0:02:21]} 15... b6 {[%clk 0:02:41.2]} 16. Rb1 {[%clk 0:02:20.1]} 16...
Bb7 {[%clk 0:02:40.7]} 17. f4 {[%clk 0:02:17.5]} 17... Nd7 {[%clk 0:02:39.1]}
18. Be3 {[%clk 0:02:15.2]} 18... Rac8 {[%clk 0:02:34.3]} 19. Qd2 {[%clk
0:02:14.6]} 19... Rfe8 {[%clk 0:02:31.3]} 20. Bf2 {[%clk 0:02:13.1]} 20... Bf8
{[%clk 0:02:31.5]} 21. Rbd1 {[%clk 0:02:11.8]} 21... g6 {[%clk 0:02:31.6]} 22.
Nc2 {[%clk 0:02:05.9]} 22... e5 {[%clk 0:02:17.2]} 23. f5 {[%clk 0:01:57.5]}
23... Nf6 {[%clk 0:02:17.2]} 24. Qg5 {[%clk 0:01:49.2]} 24... h6 {[%clk
0:01:52.4]} 25. Qe3 {[%clk 0:00:53.8]} 25... b5 {[%clk 0:01:52.6]} 26. fxg6
{[%clk 0:00:49.2]} 26... fxg6 {[%clk 0:01:52.2]} 27. Qd2 {[%clk 0:00:49.6]}
27... Rcd8 {[%clk 0:01:46.8]} 28. Nb4 {[%clk 0:00:45.3]} 28... h5 {[%clk
0:01:34.7]} 29. h3 {[%clk 0:00:39.6]} 29... Kh7 {[%clk 0:01:31.8]} 30. Nd5
{[%clk 0:00:36.5]} 30... Bxd5 {[%clk 0:01:29.3]} 31. exd5 {[%clk 0:00:37]} 31...
Bh6 {[%clk 0:01:30]} 32. Qd3 {[%clk 0:00:37.1]} 32... h4 {[%clk 0:00:54.8]} 33.
gxh4 {[%clk 0:00:31.2]} 33... Nh5 {[%clk 0:00:52.9]} 34. Kh1 {[%clk 0:00:22.4]}
34... Rf8 {[%clk 0:00:44.6]} 35. Be3 {[%clk 0:00:20.3]} 35... Bxe3 {[%clk
0:00:40.9]} 36. Qxe3 {[%clk 0:00:21.2]} 36... Nf4 {[%clk 0:00:34.5]} 37. Rg1
{[%clk 0:00:21.1]} 37... Qe7 {[%clk 0:00:34.3]} 38. Be4 {[%clk 0:00:10.8]} 38...
Qxh4 {[%clk 0:00:30.9]} 39. Rg3 {[%clk 0:00:11.4]} 39... Rf6 {[%clk 0:00:28.9]}
40. Rdg1 {[%clk 0:00:11.4]} 40... Qh6 {[%clk 0:00:22.3]} 41. Kh2 {[%clk
0:00:10.1]} 41... Rdf8 {[%clk 0:00:21.2]} 42. Qe1 {[%clk 0:00:10.2]} 42... Kh8
{[%clk 0:00:14.8]} 43. Qc1 {[%clk 0:00:07.5]} 43... Qh4 {[%clk 0:00:11.7]} 44.
Qe1 {[%clk 0:00:07.6]} 44... Ne2 {[%clk 0:00:03.4]} 45. Rg4 {[%clk 0:00:03]}
45... Qxe1 {[%clk 0:00:01.1]} 46. Rxe1 {[%clk 0:00:02.3]} 46... Nf4 {[%clk
0:00:02]} 47. Bg2 {[%clk 0:00:02]} 47... Kg7 {[%clk 0:00:02.2]} 48. Rg3 {[%clk
0:00:02.2]} 48... Kh6 {[%clk 0:00:02.9]} 49. Ree3 {[%clk 0:00:02.8]} 49... Nh5
{[%clk 0:00:03.2]} 50. Rg4 {[%clk 0:00:03.1]} 50... Rf2 {[%clk 0:00:03.5]} 51.
Kg1 {[%clk 0:00:02]} 51... Rxb2 {[%clk 0:00:03.8]} 52. Be4 {[%clk 0:00:02.9]}
52... Nf4 {[%clk 0:00:03.7]} 53. Rh4+ {[%clk 0:00:03.6]} 53... Kg7 {[%clk
0:00:03.9]} 54. Rg4 {[%clk 0:00:04.5]} 54... Rf6 {[%clk 0:00:03.8]} 55. Reg3
{[%clk 0:00:05]} 55... Ne2+ {[%clk 0:00:04]} 56. Kh2 {[%clk 0:00:04.6]} 56...
Nxg3+ {[%clk 0:00:04.9]} 57. Kxg3 {[%clk 0:00:05.5]} 57... Rxa2 {[%clk
0:00:05.5]} 58. h4 {[%clk 0:00:05.6]} 58... Ra3 {[%clk 0:00:05.9]} 59. h5 {[%clk
0:00:06.2]} 59... Rxc3+ {[%clk 0:00:06.4]} 60. Kh4 {[%clk 0:00:06.9]} 60... Rc4
{[%clk 0:00:06.8]} 61. hxg6 {[%clk 0:00:06]} 61... a5 {[%clk 0:00:06.3]} 62. Kg5
{[%clk 0:00:05.7]} 62... Rxe4 {[%clk 0:00:06.6]} 63. Rxe4 {[%clk 0:00:05.8]}
63... Rxg6+ {[%clk 0:00:07.3]} 64. Kf5 {[%clk 0:00:06.7]} 64... Rf6+ {[%clk
0:00:07.8]} 65. Kg5 {[%clk 0:00:07.3]} 65... Rf4 {[%clk 0:00:06.8]} 66. Re2
{[%clk 0:00:06.1]} 66... Rd4 {[%clk 0:00:06.9]} 67. Rc2 {[%clk 0:00:05.7]} 67...
Rxd5 {[%clk 0:00:05.4]} 68. Rc7+ {[%clk 0:00:06]} 68... Kf8 {[%clk 0:00:04.7]}
69. Kf6 {[%clk 0:00:06.3]} 69... Kg8 {[%clk 0:00:05.4]} 70. Kg6 {[%clk
0:00:06.2]} 70... Rc5 {[%clk 0:00:03.9]} 71. Rd7 {[%clk 0:00:03.5]} 71... Kf8
{[%clk 0:00:04.4]} 72. Rxd6 {[%clk 0:00:03.2]} 72... Ke7 {[%clk 0:00:04.2]} 73.
Ra6 {[%clk 0:00:03.4]} 73... b4 {[%clk 0:00:04]} 74. Kf5 {[%clk 0:00:04]} 74...
Rb5 {[%clk 0:00:04.5]} 75. Ke4 {[%clk 0:00:03.8]} 75... b3 {[%clk 0:00:05]} 76.
Ra7+ {[%clk 0:00:04.2]} 76... Kd6 {[%clk 0:00:04.9]} 77. Ra6+ {[%clk 0:00:04.5]}
77... Kc5 {[%clk 0:00:05.5]} 78. Rh6 {[%clk 0:00:01.1]} 78... b2 {[%clk
0:00:05.6]} 79. Rh1 {[%clk 0:00:01.9]} 79... b1=Q+ {[%clk 0:00:06.2]} 80. Rxb1
{[%clk 0:00:02.7]} 80... Rxb1 {[%clk 0:00:06.9]} 81. Kxe5 {[%clk 0:00:03.6]} 0-1

[Event "Early-Titled-Tuesday-Blitz-May-07-2024"]
[Site "Chess.com"]
[Date "2024.05.07"]
[Round "11"]
[White "Rosh1610"]
[Black "mbojan"]
[Result "0-1"]
[WhiteElo "2519"]
[BlackElo "2890"]
[TimeControl "180+1"]
[EndTime "10:16:18 PDT"]
[Termination "mbojan won by checkmate"]

1. e4 {[%clk 0:02:58.7]} 1... a6 {[%clk 0:02:59.5]} 2. d4 {[%clk 0:02:56.6]}
2... e6 {[%clk 0:02:59.6]} 3. Nc3 {[%clk 0:02:56.1]} 3... d5 {[%clk 0:03:00.2]}
4. Nf3 {[%clk 0:02:55.5]} 4... Bb4 {[%clk 0:02:59.9]} 5. exd5 {[%clk 0:02:54.9]}
5... exd5 {[%clk 0:02:59.5]} 6. Bd3 {[%clk 0:02:54.9]} 6... Ne7 {[%clk
0:02:59.9]} 7. O-O {[%clk 0:02:54.8]} 7... Nbc6 {[%clk 0:03:00.2]} 8. a3 {[%clk
0:02:54.7]} 8... Bxc3 {[%clk 0:03:00.3]} 9. bxc3 {[%clk 0:02:55.6]} 9... O-O
{[%clk 0:03:01.1]} 10. Bf4 {[%clk 0:02:55.5]} 10... Bf5 {[%clk 0:03:01.1]} 11.
Re1 {[%clk 0:02:53.8]} 11... Qd7 {[%clk 0:03:01.1]} 12. Ne5 {[%clk 0:02:48.1]}
12... Nxe5 {[%clk 0:02:57.5]} 13. Rxe5 {[%clk 0:02:49]} 13... Bxd3 {[%clk
0:02:51.6]} 14. cxd3 {[%clk 0:02:49.9]} 14... Ng6 {[%clk 0:02:51.3]} 15. Bg3
{[%clk 0:02:36.1]} 15... Nxe5 {[%clk 0:02:50.7]} 16. Bxe5 {[%clk 0:02:35.7]}
16... f6 {[%clk 0:02:49.1]} 17. Bg3 {[%clk 0:02:35.4]} 17... Rfe8 {[%clk
0:02:49.1]} 18. Qd2 {[%clk 0:02:34.1]} 18... Re6 {[%clk 0:02:48.6]} 19. f3
{[%clk 0:02:29.1]} 19... Rae8 {[%clk 0:02:49.5]} 20. c4 {[%clk 0:02:28.5]} 20...
c6 {[%clk 0:02:50.4]} 21. c5 {[%clk 0:02:27.7]} 21... Re2 {[%clk 0:02:50.3]} 22.
Qc3 {[%clk 0:02:27.5]} 22... h5 {[%clk 0:02:50.3]} 23. h4 {[%clk 0:02:27.5]}
23... g5 {[%clk 0:02:45.8]} 24. Rb1 {[%clk 0:02:23.5]} 24... g4 {[%clk
0:02:45.8]} 25. Rf1 {[%clk 0:02:11.3]} 25... gxf3 {[%clk 0:02:37.8]} 26. Rxf3
{[%clk 0:02:12.2]} 26... R2e3 {[%clk 0:02:36.2]} 27. Kf2 {[%clk 0:02:05.9]}
27... Rxf3+ {[%clk 0:02:34.8]} 28. gxf3 {[%clk 0:02:06.8]} 28... Qe7 {[%clk
0:02:34.7]} 29. Qd2 {[%clk 0:02:06.6]} 29... Kh7 {[%clk 0:02:35.3]} 30. a4
{[%clk 0:02:06]} 30... Qg7 {[%clk 0:02:33.6]} 31. a5 {[%clk 0:02:05.7]} 31...
Qh6 {[%clk 0:02:31.2]} 32. Qxh6+ {[%clk 0:01:55.5]} 32... Kxh6 {[%clk
0:02:32.1]} 33. Bd6 {[%clk 0:01:55.4]} 33... Kg6 {[%clk 0:02:27.9]} 34. Bg3
{[%clk 0:01:55.8]} 34... Kf5 {[%clk 0:02:24.4]} 35. Bd6 {[%clk 0:01:56.2]} 35...
Ke6 {[%clk 0:02:25]} 36. Bg3 {[%clk 0:01:56.3]} 36... Kd7 {[%clk 0:02:25.9]} 37.
Bd6 {[%clk 0:01:56.5]} 37... Re6 {[%clk 0:02:26.7]} 38. Bg3 {[%clk 0:01:56.3]}
38... Kc8 {[%clk 0:02:27.6]} 39. Bf4 {[%clk 0:01:56.5]} 39... Re8 {[%clk
0:02:17.9]} 40. Bg3 {[%clk 0:01:56.1]} 40... Kd7 {[%clk 0:01:58.1]} 41. Bf4
{[%clk 0:01:55.7]} 41... Re6 {[%clk 0:01:59]} 42. Be3 {[%clk 0:01:55.2]} 42...
Ke8 {[%clk 0:01:59.9]} 43. Bf4 {[%clk 0:01:55.3]} 43... Kf7 {[%clk 0:02:00.8]}
44. Be3 {[%clk 0:01:55.6]} 44... f5 {[%clk 0:02:01.7]} 45. Bf4 {[%clk
0:01:52.1]} 45... Ke8 {[%clk 0:02:02.6]} 46. Be5 {[%clk 0:01:50.7]} 46... Kd7
{[%clk 0:01:42.4]} 47. Kg3 {[%clk 0:01:47.6]} 47... Rg6+ {[%clk 0:01:42.4]} 48.
Kf2 {[%clk 0:01:44.6]} 48... Kc8 {[%clk 0:01:43]} 49. Bf4 {[%clk 0:01:43.3]}
49... Rg8 {[%clk 0:01:40.4]} 50. Bg5 {[%clk 0:01:42.9]} 50... Rf8 {[%clk
0:01:39.8]} 51. Be7 {[%clk 0:01:42.5]} 51... Rf7 {[%clk 0:01:39.2]} 52. Bd6
{[%clk 0:01:40.8]} 52... f4 {[%clk 0:01:39.7]} 53. Be5 {[%clk 0:01:41.3]} 53...
Kd7 {[%clk 0:01:39.9]} 54. Bb8 {[%clk 0:01:40.4]} 54... Ke6 {[%clk 0:01:40.2]}
55. Be5 {[%clk 0:01:32.8]} 55... Kf5 {[%clk 0:01:40.3]} 56. Kg2 {[%clk
0:01:26.3]} 56... Rf8 {[%clk 0:01:40.2]} 57. Kf2 {[%clk 0:01:26.1]} 57... Rg8
{[%clk 0:01:40.5]} 58. Bd6 {[%clk 0:01:23.2]} 58... Rg3 {[%clk 0:01:36.4]} 59.
Be7 {[%clk 0:01:22.9]} 59... Ke6 {[%clk 0:01:26.1]} 60. Bg5 {[%clk 0:01:18.5]}
60... Kd7 {[%clk 0:01:19.2]} 61. Bxf4 {[%clk 0:01:16.8]} 61... Rh3 {[%clk
0:01:16.3]} 62. Bg3 {[%clk 0:01:14.7]} 62... Rh1 {[%clk 0:01:16.1]} 63. Ke2
{[%clk 0:01:09.6]} 63... Ke6 {[%clk 0:01:05.1]} 64. Be1 {[%clk 0:01:07.7]} 64...
Kf5 {[%clk 0:01:04.5]} 65. Bd2 {[%clk 0:01:03.4]} 65... Rxh4 {[%clk 0:01:03.2]}
66. Be3 {[%clk 0:00:48.6]} 66... Rh2+ {[%clk 0:01:01.9]} 67. Ke1 {[%clk
0:00:48.5]} 67... Ra2 {[%clk 0:01:02.8]} 68. Bd2 {[%clk 0:00:47.3]} 68... h4
{[%clk 0:01:03.2]} 69. Be3 {[%clk 0:00:48.1]} 69... Rxa5 {[%clk 0:01:02.3]} 70.
Bg1 {[%clk 0:00:49]} 70... Kf4 {[%clk 0:01:00.7]} 71. Kf2 {[%clk 0:00:49.9]}
71... Ra2+ {[%clk 0:01:00.4]} 72. Kf1 {[%clk 0:00:50.1]} 72... Kxf3 {[%clk
0:01:00.6]} 73. Bf2 {[%clk 0:00:50.7]} 73... Rxf2+ {[%clk 0:00:59.7]} 74. Kg1
{[%clk 0:00:51.6]} 74... Re2 {[%clk 0:00:58.8]} 75. Kh1 {[%clk 0:00:52.5]} 75...
Ke3 {[%clk 0:00:59.1]} 76. Kg1 {[%clk 0:00:52.4]} 76... Kxd3 {[%clk 0:00:59.7]}
77. Kh1 {[%clk 0:00:53.3]} 77... Kxd4 {[%clk 0:01:00.1]} 78. Kg1 {[%clk
0:00:54.2]} 78... Kxc5 {[%clk 0:01:00.5]} 79. Kh1 {[%clk 0:00:55.1]} 79... d4
{[%clk 0:01:00.9]} 80. Kg1 {[%clk 0:00:56]} 80... d3 {[%clk 0:01:01.8]} 81. Kh1
{[%clk 0:00:56.9]} 81... b6 {[%clk 0:01:02.6]} 82. Kg1 {[%clk 0:00:57.1]} 82...
Kd6 {[%clk 0:01:03.5]} 83. Kh1 {[%clk 0:00:58]} 83... Kd7 {[%clk 0:01:04.4]} 84.
Kg1 {[%clk 0:00:58.9]} 84... Ke7 {[%clk 0:01:05.3]} 85. Kh1 {[%clk 0:00:59.8]}
85... c5 {[%clk 0:01:06.2]} 86. Kg1 {[%clk 0:01:00.6]} 86... b5 {[%clk
0:01:07.1]} 87. Kh1 {[%clk 0:01:01.5]} 87... a5 {[%clk 0:01:08]} 88. Kg1 {[%clk
0:01:02.4]} 88... a4 {[%clk 0:01:08.9]} 89. Kh1 {[%clk 0:01:03.3]} 89... b4
{[%clk 0:01:09.8]} 90. Kg1 {[%clk 0:01:04.2]} 90... c4 {[%clk 0:01:10.7]} 91.
Kh1 {[%clk 0:01:05.1]} 91... b3 {[%clk 0:01:11.6]} 92. Kg1 {[%clk 0:01:06]}
92... c3 {[%clk 0:01:12.5]} 93. Kh1 {[%clk 0:01:06.9]} 93... a3 {[%clk
0:01:13.4]} 94. Kg1 {[%clk 0:01:07.7]} 94... a2 {[%clk 0:01:14.3]} 95. Kh1
{[%clk 0:01:08.6]} 95... b2 {[%clk 0:01:15.2]} 96. Kg1 {[%clk 0:01:09.5]} 96...
c2 {[%clk 0:01:16.1]} 97. Kh1 {[%clk 0:01:10.4]} 97... Kd6 {[%clk 0:01:17]} 98.
Kg1 {[%clk 0:01:11.3]} 98... Kd5 {[%clk 0:01:17.9]} 99. Kh1 {[%clk 0:01:12.2]}
99... Kd4 {[%clk 0:01:18.8]} 100. Kg1 {[%clk 0:01:13.1]} 100... Ke3 {[%clk
0:01:19.7]} 101. Kh1 {[%clk 0:01:14]} 101... d2 {[%clk 0:01:20.6]} 102. Kg1
{[%clk 0:01:14.9]} 102... a1=N {[%clk 0:01:15.6]} 103. Kh1 {[%clk 0:01:15.8]}
103... b1=N {[%clk 0:01:15.2]} 104. Kg1 {[%clk 0:01:16.7]} 104... c1=N {[%clk
0:01:15.6]} 105. Kh1 {[%clk 0:01:17.6]} 105... d1=N {[%clk 0:01:16.1]} 106. Kg1
{[%clk 0:01:18.5]} 106... Ndc3 {[%clk 0:01:16.3]} 107. Kh1 {[%clk 0:01:19.4]}
107... Ncb3 {[%clk 0:01:17.2]} 108. Kg1 {[%clk 0:01:20.3]} 108... Na3 {[%clk
0:01:18.1]} 109. Kh1 {[%clk 0:01:21.2]} 109... N1c2 {[%clk 0:01:19]} 110. Kg1
{[%clk 0:01:22.1]} 110... Nb4 {[%clk 0:01:19.9]} 111. Kh1 {[%clk 0:01:23]}
111... Nc4 {[%clk 0:01:20.8]} 112. Kg1 {[%clk 0:01:23.4]} 112... Nb5 {[%clk
0:01:21.7]} 113. Kf1 {[%clk 0:01:23.8]} 113... Nba5 {[%clk 0:01:22.6]} 114. Kg1
{[%clk 0:01:24.4]} 114... Nb6 {[%clk 0:01:23.5]} 115. Kh1 {[%clk 0:01:25.3]}
115... Nbc6 {[%clk 0:01:24.4]} 116. Kg1 {[%clk 0:01:26.2]} 116... Nba7 {[%clk
0:01:25.3]} 117. Kf1 {[%clk 0:01:27.1]} 117... Nb7 {[%clk 0:01:26.2]} 118. Kg1
{[%clk 0:01:27.8]} 118... Nb8 {[%clk 0:01:27.1]} 119. Kh1 {[%clk 0:01:28.7]}
119... Na8 {[%clk 0:01:28]} 120. Kg1 {[%clk 0:01:29.6]} 120... Kf3 {[%clk
0:01:28.9]} 121. Kh1 {[%clk 0:01:30.5]} 121... Rf2 {[%clk 0:01:29.7]} 122. Kg1
{[%clk 0:01:31.4]} 122... Kg3 {[%clk 0:01:30.6]} 123. Kh1 {[%clk 0:01:32.3]}
123... Rh2+ {[%clk 0:01:31.2]} 124. Kg1 {[%clk 0:01:33.2]} 124... h3 {[%clk
0:01:32.1]} 125. Kf1 {[%clk 0:01:33.1]} 125... Rg2 {[%clk 0:01:33]} 126. Ke1
{[%clk 0:01:33.3]} 126... h2 {[%clk 0:01:33.9]} 127. Kd1 {[%clk 0:01:34.2]}
127... h1=N {[%clk 0:01:34.8]} 128. Kc1 {[%clk 0:01:35.1]} 128... Kf3 {[%clk
0:01:35.7]} 129. Kb1 {[%clk 0:01:36]} 129... Ng3 {[%clk 0:01:36.6]} 130. Ka1
{[%clk 0:01:36.7]} 130... Nf5 {[%clk 0:01:37.5]} 131. Kb1 {[%clk 0:01:37.6]}
131... Nfd6 {[%clk 0:01:38.4]} 132. Ka1 {[%clk 0:01:38.5]} 132... Ndc8 {[%clk
0:01:39.3]} 133. Kb1 {[%clk 0:01:39.4]} 133... Rg7 {[%clk 0:01:40.2]} 134. Ka1
{[%clk 0:01:40.2]} 134... Rc7 {[%clk 0:01:41.1]} 135. Kb1 {[%clk 0:01:41.1]}
135... Ke4 {[%clk 0:01:42]} 136. Ka1 {[%clk 0:01:41.9]} 136... Kd5 {[%clk
0:01:42.9]} 137. Kb1 {[%clk 0:01:42.5]} 137... Kd6 {[%clk 0:01:43.8]} 138. Ka1
{[%clk 0:01:43.1]} 138... Kd7 {[%clk 0:01:44.7]} 139. Kb1 {[%clk 0:01:44]}
139... Kd8 {[%clk 0:01:45.6]} 140. Ka1 {[%clk 0:01:44.9]} 140... Kd7 {[%clk
0:01:36.5]} 141. Kb1 {[%clk 0:01:45.8]} 141... Rc6 {[%clk 0:01:37.2]} 142. Ka1
{[%clk 0:01:46.7]} 142... Rb6 {[%clk 0:01:37.8]} 143. Ka2 {[%clk 0:01:46.2]}
143... Kc6 {[%clk 0:01:38.7]} 144. Ka1 {[%clk 0:01:47.1]} 144... Kc5 {[%clk
0:01:39.6]} 145. Ka2 {[%clk 0:01:47.9]} 145... Kc4 {[%clk 0:01:40.5]} 146. Ka1
{[%clk 0:01:48.8]} 146... Kc3 {[%clk 0:01:41.4]} 147. Ka2 {[%clk 0:01:49.7]}
147... Ncd6 {[%clk 0:01:42.2]} 148. Ka1 {[%clk 0:01:50.6]} 148... Nbc6 {[%clk
0:01:43.1]} 149. Ka2 {[%clk 0:01:51.5]} 149... Nc7 {[%clk 0:01:44]} 150. Ka1
{[%clk 0:01:52.4]} 150... Rb3 {[%clk 0:01:44.6]} 151. Ka2 {[%clk 0:01:53.1]}
151... Nab5 {[%clk 0:01:45.5]} 152. Ka1 {[%clk 0:01:54]} 152... Na6 {[%clk
0:01:46.4]} 153. Ka2 {[%clk 0:01:54.9]} 153... Nbc5 {[%clk 0:01:47.3]} 154. Ka1
{[%clk 0:01:55.8]} 154... Nc4 {[%clk 0:01:48.2]} 155. Ka2 {[%clk 0:01:56.7]}
155... Ncd4 {[%clk 0:01:47.7]} 156. Ka1 {[%clk 0:01:57.6]} 156... Nd3 {[%clk
0:01:48.2]} 157. Ka2 {[%clk 0:01:58.5]} 157... Ne2 {[%clk 0:01:48.8]} 158. Ka1
{[%clk 0:01:58.6]} 158... Kd2 {[%clk 0:01:36.1]} 159. Ka2 {[%clk 0:01:59.5]}
159... Kc2 {[%clk 0:01:36.9]} 160. Ka1 {[%clk 0:02:00.4]} 160... Rb4 {[%clk
0:01:37.2]} 161. Ka2 {[%clk 0:02:01.3]} 161... Ra4# {[%clk 0:01:35.2]} 0-1

[Event "Early-Titled-Tuesday-Blitz-May-07-2024"]
[Site "Chess.com"]
[Date "2024.05.07"]
[Round "11"]
[White "kacperkarwowski"]
[Black "Supergiuly"]
[Result "0-1"]
[WhiteElo "2488"]
[BlackElo "2362"]
[TimeControl "180+1"]
[EndTime "10:16:33 PDT"]
[Termination "Supergiuly won by checkmate"]

1. e3 {[%clk 0:03:00.1]} 1... e5 {[%clk 0:02:44.4]} 2. Nc3 {[%clk 0:02:57.8]}
2... f5 {[%clk 0:02:43.5]} 3. h4 {[%clk 0:02:45.8]} 3... Nf6 {[%clk 0:02:38.1]}
4. h5 {[%clk 0:02:40.3]} 4... d5 {[%clk 0:02:38.1]} 5. d4 {[%clk 0:02:38.5]}
5... e4 {[%clk 0:02:36.3]} 6. Nge2 {[%clk 0:02:34.9]} 6... Bd6 {[%clk
0:02:35.7]} 7. Nf4 {[%clk 0:02:34.3]} 7... Bxf4 {[%clk 0:02:33.1]} 8. exf4
{[%clk 0:02:33]} 8... O-O {[%clk 0:02:33.8]} 9. Qe2 {[%clk 0:02:19.8]} 9... c5
{[%clk 0:02:31.5]} 10. dxc5 {[%clk 0:02:17.2]} 10... d4 {[%clk 0:02:31.2]} 11.
Nb5 {[%clk 0:02:16]} 11... Nc6 {[%clk 0:02:18.9]} 12. Qc4+ {[%clk 0:02:05.1]}
12... Kh8 {[%clk 0:02:17.1]} 13. Nd6 {[%clk 0:02:05.6]} 13... Ng4 {[%clk
0:02:10.5]} 14. Nf7+ {[%clk 0:01:53.9]} 14... Rxf7 {[%clk 0:02:08.9]} 15. Qxf7
{[%clk 0:01:54.8]} 15... e3 {[%clk 0:02:01.3]} 16. h6 {[%clk 0:01:25.5]} 16...
exf2+ {[%clk 0:01:57.4]} 17. Kd1 {[%clk 0:01:25.1]} 17... Nxh6 {[%clk
0:01:36.7]} 18. Rxh6 {[%clk 0:00:55.1]} 18... gxh6 {[%clk 0:01:37.6]} 19. b4
{[%clk 0:00:48.6]} 19... Nxb4 {[%clk 0:01:31.4]} 20. Bb2 {[%clk 0:00:46.4]}
20... Nc6 {[%clk 0:01:30.1]} 21. Bd3 {[%clk 0:00:29.3]} 21... Bd7 {[%clk
0:01:25]} 22. Ke2 {[%clk 0:00:20.6]} 22... Qe8+ {[%clk 0:01:03.3]} 23. Qxe8+
{[%clk 0:00:20.6]} 23... Rxe8+ {[%clk 0:01:03.9]} 24. Kxf2 {[%clk 0:00:21.5]}
24... Nb4 {[%clk 0:01:01.5]} 25. Bxd4+ {[%clk 0:00:21]} 25... Kg8 {[%clk
0:00:56.5]} 26. Bc4+ {[%clk 0:00:19.6]} 26... Be6 {[%clk 0:00:56.3]} 27. Bxe6+
{[%clk 0:00:19.3]} 27... Rxe6 {[%clk 0:00:55.5]} 28. c3 {[%clk 0:00:19.5]} 28...
Nc2 {[%clk 0:00:54.1]} 29. Rd1 {[%clk 0:00:18.3]} 29... Ra6 {[%clk 0:00:50.4]}
30. Be5 {[%clk 0:00:14.2]} 30... Rxa2 {[%clk 0:00:48.5]} 31. Kf3 {[%clk
0:00:14.7]} 31... Ra1 {[%clk 0:00:39.9]} 32. Rd8+ {[%clk 0:00:13.4]} 32... Kf7
{[%clk 0:00:40.1]} 33. Rd7+ {[%clk 0:00:14.3]} 33... Kg6 {[%clk 0:00:40.3]} 34.
Rg7+ {[%clk 0:00:09.1]} 34... Kh5 {[%clk 0:00:39.6]} 35. Rxh7 {[%clk 0:00:07.4]}
35... Rf1+ {[%clk 0:00:38.8]} 36. Ke2 {[%clk 0:00:05.6]} 36... Rg1 {[%clk
0:00:39]} 37. Kf2 {[%clk 0:00:05.5]} 37... Rb1 {[%clk 0:00:35.4]} 38. Rf7 {[%clk
0:00:04.4]} 38... a5 {[%clk 0:00:27.2]} 39. Rxf5+ {[%clk 0:00:04.1]} 39... Kg6
{[%clk 0:00:24.3]} 40. g4 {[%clk 0:00:04.4]} 40... a4 {[%clk 0:00:21.1]} 41.
Rf6+ {[%clk 0:00:04.3]} 41... Kh7 {[%clk 0:00:19.6]} 42. Rf7+ {[%clk 0:00:04.9]}
42... Kg8 {[%clk 0:00:19.5]} 43. Rg7+ {[%clk 0:00:04.6]} 43... Kf8 {[%clk
0:00:19.2]} 44. Rh7 {[%clk 0:00:05.2]} 44... a3 {[%clk 0:00:19.1]} 45. Rxh6
{[%clk 0:00:04.2]} 45... a2 {[%clk 0:00:19.3]} 46. c4 {[%clk 0:00:04.9]} 46...
Nb4 {[%clk 0:00:14.3]} 47. Rh8+ {[%clk 0:00:03.5]} 47... Kf7 {[%clk 0:00:14.3]}
48. Ke3 {[%clk 0:00:02.6]} 48... Nc2+ {[%clk 0:00:13.2]} 49. Ke4 {[%clk
0:00:02.9]} 49... Re1+ {[%clk 0:00:12.3]} 50. Kf5 {[%clk 0:00:03.4]} 50... Rxe5+
{[%clk 0:00:12.5]} 51. fxe5 {[%clk 0:00:04.3]} 51... a1=Q {[%clk 0:00:12.7]} 52.
Rh7+ {[%clk 0:00:04.6]} 52... Kg8 {[%clk 0:00:12.5]} 53. Rxb7 {[%clk 0:00:05.1]}
53... Qf1+ {[%clk 0:00:12.2]} 54. Ke6 {[%clk 0:00:05.4]} 54... Qxc4+ {[%clk
0:00:12.2]} 55. Kd6 {[%clk 0:00:06]} 55... Qd4+ {[%clk 0:00:11.9]} 56. Kc6
{[%clk 0:00:06.4]} 56... Nb4+ {[%clk 0:00:11.4]} 57. Kb5 {[%clk 0:00:06.7]}
57... Nd5 {[%clk 0:00:08.5]} 58. e6 {[%clk 0:00:05.3]} 58... Qd3+ {[%clk
0:00:08.1]} 59. Kc6 {[%clk 0:00:05.3]} 59... Qa6+ {[%clk 0:00:07.1]} 60. Rb6
{[%clk 0:00:03.3]} 60... Nxb6 {[%clk 0:00:06.4]} 61. cxb6 {[%clk 0:00:04.2]}
61... Qc8+ {[%clk 0:00:06.6]} 62. Kd6 {[%clk 0:00:04.2]} 62... Qb8+ {[%clk
0:00:06.6]} 63. Kd7 {[%clk 0:00:03.7]} 63... Kf8 {[%clk 0:00:05.8]} 64. e7+
{[%clk 0:00:03.9]} 64... Kf7 {[%clk 0:00:06.1]} 65. g5 {[%clk 0:00:03.9]} 65...
Qe8+ {[%clk 0:00:06.5]} 66. Kc7 {[%clk 0:00:02.3]} 66... Qxe7+ {[%clk 0:00:07]}
67. Kc8 {[%clk 0:00:03]} 67... Qc5+ {[%clk 0:00:06.7]} 68. Kb7 {[%clk
0:00:03.1]} 68... Qd5+ {[%clk 0:00:06.5]} 69. Kc7 {[%clk 0:00:03.4]} 69... Qc5+
{[%clk 0:00:05.8]} 70. Kb7 {[%clk 0:00:03.7]} 70... Kg6 {[%clk 0:00:05.3]} 71.
Ka6 {[%clk 0:00:03]} 71... Qa3+ {[%clk 0:00:05.1]} 72. Kb7 {[%clk 0:00:03.3]}
72... Kxg5 {[%clk 0:00:04.2]} 73. Kb8 {[%clk 0:00:03.1]} 73... Kf5 {[%clk
0:00:03.6]} 74. b7 {[%clk 0:00:03.2]} 74... Ke6 {[%clk 0:00:01.2]} 75. Kc8
{[%clk 0:00:02.1]} 75... Qc5+ {[%clk 0:00:01.9]} 76. Kd8 {[%clk 0:00:01.3]}
76... Qb6+ {[%clk 0:00:02.6]} 77. Kc8 {[%clk 0:00:01.6]} 77... Qc6+ {[%clk
0:00:03.1]} 78. Kb8 {[%clk 0:00:02.1]} 78... Kd7 {[%clk 0:00:03]} 79. Ka7 {[%clk
0:00:02.6]} 79... Qa4+ {[%clk 0:00:02.9]} 80. Kb8 {[%clk 0:00:03.2]} 80... Kc6
{[%clk 0:00:02.4]} 81. Kc8 {[%clk 0:00:03.4]} 81... Qg4+ {[%clk 0:00:01.9]} 82.
Kb8 {[%clk 0:00:03.7]} 82... Qg8+ {[%clk 0:00:02.8]} 83. Ka7 {[%clk 0:00:04]}
83... Qa2+ {[%clk 0:00:02.9]} 84. Kb8 {[%clk 0:00:04.3]} 84... Kb6 {[%clk
0:00:03.1]} 85. Kc8 {[%clk 0:00:04.1]} 85... Qg8+ {[%clk 0:00:03.9]} 86. Kd7
{[%clk 0:00:04.4]} 86... Qf7+ {[%clk 0:00:04.6]} 87. Kd8 {[%clk 0:00:03.6]}
87... Qxb7 {[%clk 0:00:05.5]} 88. Ke8 {[%clk 0:00:03.7]} 88... Kc6 {[%clk
0:00:05.5]} 89. Kd8 {[%clk 0:00:04.3]} 89... Kd6 {[%clk 0:00:06]} 90. Ke8 {[%clk
0:00:04.6]} 90... Qe7# {[%clk 0:00:06.6]} 0-1